fUST/lending_fUST_20241022
["ID","MTS","AMOUNT","RATE_DAILY","PERIOD"]
[340641302,1729584638712,-500.0,0.00016438,2]
[340641303,1729584638722,-500.0,0.00016438,2]
[340641304,1729584638731,-500.0,0.00016438,2]
[340641305,1729584638742,-200.0,0.00016438,2]
[340641306,1729584638752,-500.0,0.00016438,2]
[340641307,1729584638762,-835.0,0.00016438,2]
[340641308,1729584638771,-500.0,0.00016438,2]
[340641309,1729584638781,-500.0,0.00016438,2]
[340641310,1729584638791,-500.0,0.00016438,2]
[340641311,1729584638804,-562.03,0.00016438,2]
[340641312,1729584638813,-500.0,0.00016438,2]
[340641313,1729584638822,-500.0,0.00016438,2]
[340641314,1729584638831,-829.05,0.00016438,2]
[340641315,1729584638842,-500.0,0.00016438,2]
[340641316,1729584638852,-500.0,0.00016438,2]
[340641317,1729584638861,-658.88,0.00016438,2]
[340641318,1729584638871,-500.0,0.00016438,2]
[340641319,1729584638883,-500.0,0.00016438,2]
[340641320,1729584638893,-500.0,0.00016438,2]
[340641321,1729584638902,-500.0,0.00016438,2]
[340641322,1729584638911,-500.0,0.00016438,2]
[340641323,1729584638921,-500.0,0.00016438,2]
[340641324,1729584638930,-1053.99,0.00016438,2]
[340641325,1729584638940,-500.0,0.00016438,2]
[340641326,1729584638949,-500.0,0.00016438,2]
[340641327,1729584638959,-500.0,0.00016438,2]
[340641328,1729584638969,-640.8,0.00016438,2]
[340641329,1729584638978,-500.0,0.00016438,2]
[340641330,1729584638988,-500.0,0.00016438,2]
[340641331,1729584638998,-500.0,0.00016438,2]
[340641332,1729584639008,-500.0,0.00016438,2]
[340641333,1729584639017,-500.0,0.00016438,2]
[340641334,1729584639027,-500.0,0.00016438,2]
[340641335,1729584639036,-500.0,0.00016438,2]
[340641336,1729584639048,-500.0,0.00016438,2]
[340641337,1729584639057,-500.0,0.00016438,2]
[340641338,1729584639068,-500.0,0.00016438,2]
[340641339,1729584639078,-500.0,0.00016438,2]
[340641340,1729584639087,-500.0,0.00016438,2]
[340641341,1729584639097,-500.0,0.00016438,2]
[340641342,1729584639106,-1029.68,0.00016438,2]
[340641343,1729584639116,-500.0,0.00016438,2]
[340641344,1729584639125,-500.0,0.00016438,2]
[340641345,1729584639135,-673.97,0.00016438,2]
[340641346,1729584639144,-500.0,0.00016438,2]
[340641347,1729584639153,-500.0,0.00016438,2]
[340641348,1729584639163,-500.0,0.00016438,2]
[340641349,1729584639172,-500.0,0.00016438,2]
[340641350,1729584639181,-500.0,0.00016438,2]
[340641351,1729584639191,-500.0,0.00016438,2]
[340641352,1729584639201,-500.0,0.00016438,2]
[340641353,1729584639211,-808.03,0.00016438,2]
[340641354,1729584639221,-500.0,0.00016438,2]
[340641355,1729584639230,-500.0,0.00016438,2]
[340641356,1729584639240,-1435.66,0.00016438,2]
[340641357,1729584639249,-644.92,0.00016438,2]
[340641358,1729584639259,-500.0,0.00016438,2]
[340641359,1729584639269,-500.0,0.00016438,2]
[340641360,1729584639278,-619.69,0.00016438,2]
[340641361,1729584639288,-500.0,0.00016438,2]
[340641362,1729584639299,-500.0,0.00016438,2]
[340641363,1729584639309,-627.26,0.00016438,2]
[340641364,1729584639318,-500.0,0.00016438,2]
[340641365,1729584639328,-658.98,0.00016438,2]
[340641366,1729584639338,-539.06,0.00016438,2]
[340641367,1729584639347,-585.49,0.00016438,2]
[340641368,1729584639357,-1062.46,0.00016438,2]
[340641369,1729584639366,-836.53,0.00016438,2]
[340641370,1729584639376,-17067.34,0.00016438,2]
[340641371,1729584639385,-500.0,0.00016438,2]
[340641372,1729584639396,-500.0,0.00016438,2]
[340641373,1729584639405,-3176.67,0.00016438,2]
[340641374,1729584639415,-500.0,0.00016438,2]
[340641375,1729584639425,-500.0,0.00016438,2]
[340641377,1729584639435,-1516.58,0.00016438,2]
[340641379,1729584639444,-922.66,0.00016438,2]
[340641381,1729584639454,-1705.55,0.00016438,2]
[340641382,1729584639464,-500.0,0.00016438,2]
[340641383,1729584639473,-500.0,0.00016438,2]
[340641384,1729584639484,-732.26,0.00016438,2]
[340641385,1729584639494,-1100.13,0.00016438,2]
[340641386,1729584639505,-568.45,0.00016438,2]
[340641387,1729584639514,-500.0,0.00016438,2]
[340641389,1729584639524,-500.0,0.00016438,2]
[340641391,1729584639534,-500.0,0.00016438,2]
[340641392,1729584639544,-500.0,0.00016438,2]
[340641393,1729584639553,-500.0,0.00016438,2]
[340641394,1729584639563,-662.63,0.00016438,2]
[340641395,1729584639572,-716.55,0.00016438,2]
[340641396,1729584639582,-550.98,0.00016438,2]
[340641397,1729584639601,-500.0,0.00016438,2]
[340641398,1729584639610,-684.44,0.00016438,2]
[340641399,1729584639619,-513.13,0.00016438,2]
[340641400,1729584639628,-500.0,0.00016438,2]
[340641401,1729584639638,-6567.93,0.00016438,2]
[340641402,1729584639648,-500.0,0.00016438,2]
[340641403,1729584639657,-500.0,0.00016438,2]
[340641404,1729584639666,-539.49,0.00016438,2]
[340641405,1729584639676,-500.0,0.00016438,2]
[340641406,1729584639685,-1000.0,0.00016438,2]
[340641407,1729584639695,-2286.36,0.00016438,2]
[340641408,1729584639704,-500.0,0.00016438,2]
[340641409,1729584639713,-500.0,0.00016438,2]
[340641410,1729584639723,-1476.68,0.00016438,2]
[340641411,1729584639733,-663.3,0.00016438,2]
[340641412,1729584639742,-859.08,0.00016438,2]
[340641413,1729584639752,-977.73,0.00016438,2]
[340641414,1729584639761,-500.0,0.00016438,2]
[340641415,1729584639772,-500.0,0.00016438,2]
[340641416,1729584639782,-658.07,0.00016438,2]
[340641417,1729584639792,-500.0,0.00016438,2]
[340641418,1729584639802,-688.26,0.00016438,2]
[340641419,1729584639812,-406.79941627,0.00016438,2]
[340641420,1729584639821,-500.0,0.00016438,2]
[340641421,1729584639831,-805.15,0.00016438,2]
[340641422,1729584639840,-500.0,0.00016438,2]
[340641423,1729584639850,-727.89,0.00016438,2]
[340641424,1729584639860,-521.89,0.00016438,2]
[340641425,1729584639870,-500.0,0.00016438,2]
[340641427,1729584639879,-500.0,0.00016438,2]
[340641428,1729584639890,-500.0,0.00016438,2]
[340641429,1729584639900,-537.05,0.00016438,2]
[340641430,1729584639909,-2298.35,0.00016438,2]
[340641431,1729584639919,-500.0,0.00016438,2]
[340641432,1729584639929,-500.0,0.00016438,2]
[340641433,1729584639938,-500.0,0.00016438,2]
[340641434,1729584639949,-520.15,0.00016438,2]
[340641435,1729584639960,-500.0,0.00016438,2]
[340641436,1729584639969,-500.0,0.00016438,2]
[340641437,1729584639979,-500.0,0.00016438,2]
[340641438,1729584639989,-500.0,0.00016438,2]
[340641439,1729584639999,-2027.62,0.00016438,2]
[340641440,1729584640009,-596.05,0.00016438,2]
[340641441,1729584640019,-500.0,0.00016438,2]
[340641442,1729584640028,-500.0,0.00016438,2]
[340641443,1729584640038,-500.0,0.00016438,2]
[340641444,1729584640049,-500.0,0.00016438,2]
[340641445,1729584640058,-500.0,0.00016438,2]
[340641446,1729584640067,-500.0,0.00016438,2]
[340641447,1729584640077,-567.37,0.00016438,2]
[340641448,1729584640087,-890.03,0.00016438,2]
[340641449,1729584640097,-500.0,0.00016438,2]
[340641450,1729584640106,-511.51,0.00016438,2]
[340641451,1729584640116,-500.0,0.00016438,2]
[340641452,1729584640125,-500.0,0.00016438,2]
[340641453,1729584640134,-749.1,0.00016438,2]
[340641454,1729584640144,-500.0,0.00016438,2]
[340641455,1729584640154,-699.93,0.00016438,2]
[340641456,1729584640163,-500.0,0.00016438,2]
[340641457,1729584640172,-562.27,0.00016438,2]
[340641458,1729584640182,-500.0,0.00016438,2]
[340641459,1729584640192,-727.33,0.00016438,2]
[340641460,1729584640201,-500.0,0.00016438,2]
[340641461,1729584640211,-627.02,0.00016438,2]
[340641462,1729584640220,-1260.47,0.00016438,2]
[340641463,1729584640230,-381.51620667,0.00016438,2]
[340641464,1729584640240,-500.0,0.00016438,2]
[340641465,1729584640250,-500.0,0.00016438,2]
[340641466,1729584640259,-500.0,0.00016438,2]
[340641467,1729584640269,-593.4,0.00016438,2]
[340641468,1729584640279,-563.85,0.00016438,2]
[340641469,1729584640289,-988.12,0.00016438,2]
[340641470,1729584640300,-500.0,0.00016438,2]
[340641471,1729584640310,-7881.12,0.00016438,2]
[340641472,1729584640320,-500.0,0.00016438,2]
[340641473,1729584640330,-578.63,0.00016438,2]
[340641474,1729584640340,-500.0,0.00016438,2]
[340641475,1729584640349,-1073.2,0.00016438,2]
[340641476,1729584640358,-461.18421383,0.00016438,2]
[340641477,1729584640368,-500.0,0.00016438,2]
[340641478,1729584640377,-500.0,0.00016438,2]
[340641479,1729584640386,-593.3,0.00016438,2]
[340641480,1729584640395,-500.0,0.00016438,2]
[340641481,1729584640553,-581.92,0.00016438,2]
[340641482,1729584640568,-500.0,0.00016438,2]
[340641483,1729584640577,-500.0,0.00016473,2]
[340641484,1729584640587,-501.27880012,0.00016473,2]
[340641485,1729584640597,-500.0,0.00016473,2]
[340641486,1729584640607,-160.44296951,0.00016643,5]
[340641487,1729584640616,-4451.1974904,0.00016692,2]
[340641488,1729584640626,-7334.28440875,0.00016697,2]
[340641489,1729584640636,-5934.9299872,0.00016702,2]
[340641490,1729584640645,-500.0,0.00016712,2]
[340641491,1729584640655,-500.0,0.00016712,2]
[340641492,1729584640664,-500.0,0.00016712,2]
[340641493,1729584640673,-500.0,0.00016712,2]
[340641494,1729584640683,-500.0,0.00016712,2]
[340641495,1729584640693,-500.0,0.00016712,2]
[340641496,1729584640703,-500.0,0.00016712,2]
[340641497,1729584640712,-760.87,0.00016712,2]
[340641498,1729584640723,-500.0,0.00016712,2]
[340641499,1729584640733,-525.44,0.00016712,2]
[340641500,1729584640743,-500.0,0.00016712,2]
[340641501,1729584640752,-310.09564686,0.00016712,2]
[340641502,1729584640762,-500.0,0.00016712,2]
[340641503,1729584640772,-500.0,0.00016712,2]
[340641504,1729584640782,-500.0,0.00016712,2]
[340641505,1729584640806,-372.16625662,0.00016712,2]
[340641506,1729584640817,-555.26,0.00016712,2]
[340641507,1729584640826,-500.0,0.00016712,2]
[340641508,1729584640836,-500.0,0.00016712,2]
[340641509,1729584640847,-500.0,0.00016712,2]
[340641510,1729584640857,-564.8,0.00016712,2]
[340641511,1729584640867,-523.78,0.00016712,2]
[340641512,1729584640877,-578.02,0.00016712,2]
[340641513,1729584640888,-500.0,0.00016712,2]
[340641514,1729584640898,-500.0,0.00016712,2]
[340641515,1729584640908,-500.0,0.00016712,2]
[340641516,1729584640917,-320.19434241,0.00016712,2]
[340641517,1729584640927,-500.0,0.00016712,2]
[340641518,1729584640937,-500.0,0.00016712,2]
[340641519,1729584640947,-500.22,0.00016712,2]
[340641520,1729584640957,-500.0,0.00016712,2]
[340641521,1729584640966,-521.25,0.00016712,2]
[340641522,1729584640975,-500.0,0.00016712,2]
[340641523,1729584640985,-500.0,0.00016712,2]
[340641524,1729584640995,-500.0,0.00016712,2]
[340641525,1729584641005,-500.0,0.00016712,2]
[340641526,1729584641014,-500.0,0.00016712,2]
[340641527,1729584641024,-500.0,0.00016712,2]
[340641528,1729584641034,-500.0,0.00016712,2]
[340641529,1729584641043,-500.0,0.00016712,2]
[340641530,1729584641054,-500.0,0.00016712,2]
[340641531,1729584641063,-500.0,0.00016712,2]
[340641532,1729584641073,-508.14,0.00016712,2]
[340641533,1729584641083,-500.0,0.00016712,2]
[340641534,1729584641092,-500.0,0.00016712,2]
[340641535,1729584641102,-500.0,0.00016712,2]
[340641536,1729584641113,-500.0,0.00016712,2]
[340641537,1729584641123,-200.0,0.00016712,2]
[340641538,1729584641132,-500.0,0.00016712,2]
[340641539,1729584641142,-835.0,0.00016712,2]
[340641540,1729584641152,-500.0,0.00016712,2]
[340641541,1729584641161,-500.0,0.00016712,2]
[340641542,1729584641171,-500.0,0.00016712,2]
[340641543,1729584641181,-562.03,0.00016712,2]
[340641544,1729584641191,-500.0,0.00016712,2]
[340641545,1729584641201,-500.0,0.00016712,2]
[340641546,1729584641210,-829.05,0.00016712,2]
[340641547,1729584641221,-446.56479239,0.00016712,2]
[340641548,1729584641230,-500.0,0.00016712,2]
[340641549,1729584641240,-658.88,0.00016712,2]
[340641550,1729584641250,-500.0,0.00016712,2]
[340641551,1729584641259,-500.0,0.00016712,2]
[340641552,1729584641268,-500.0,0.00016712,2]
[340641553,1729584641278,-500.0,0.00016712,2]
[340641554,1729584641287,-500.0,0.00016712,2]
[340641555,1729584641298,-500.0,0.00016712,2]
[340641556,1729584641308,-1053.99,0.00016712,2]
[340641557,1729584641317,-500.0,0.00016712,2]
[340641558,1729584641327,-500.0,0.00016712,2]
[340641559,1729584641336,-500.0,0.00016712,2]
[340641560,1729584641347,-640.8,0.00016712,2]
[340641561,1729584641356,-500.0,0.00016712,2]
[340641562,1729584641365,-500.0,0.00016712,2]
[340641563,1729584641374,-500.0,0.00016712,2]
[340641564,1729584641384,-500.0,0.00016712,2]
[340641565,1729584641394,-500.0,0.00016712,2]
[340641566,1729584641403,-500.0,0.00016712,2]
[340641567,1729584641412,-500.0,0.00016712,2]
[340641568,1729584641422,-500.0,0.00016712,2]
[340641569,1729584641432,-500.0,0.00016712,2]
[340641570,1729584641442,-500.0,0.00016712,2]
[340641571,1729584641452,-500.0,0.00016712,2]
[340641572,1729584641462,-500.0,0.00016712,2]
[340641573,1729584641471,-500.0,0.00016712,2]
[340641574,1729584641480,-1029.68,0.00016712,2]
[340641575,1729584641490,-500.0,0.00016712,2]
[340641576,1729584641500,-500.0,0.00016712,2]
[340641577,1729584641509,-673.97,0.00016712,2]
[340641578,1729584641519,-500.0,0.00016712,2]
[340641579,1729584641529,-500.0,0.00016712,2]
[340641580,1729584641539,-500.0,0.00016712,2]
[340641581,1729584641549,-500.0,0.00016712,2]
[340641582,1729584641558,-500.0,0.00016712,2]
[340641583,1729584641567,-500.0,0.00016712,2]
[340641584,1729584641577,-500.0,0.00016712,2]
[340641585,1729584641586,-808.03,0.00016712,2]
[340641586,1729584641596,-500.0,0.00016712,2]
[340641587,1729584641606,-500.0,0.00016712,2]
[340641588,1729584641615,-1435.66,0.00016712,2]
[340641589,1729584641625,-644.92,0.00016712,2]
[340641590,1729584641634,-151.0,0.00016712,2]
[340641591,1729584641643,-500.0,0.00016712,2]
[340641592,1729584641652,-500.0,0.00016712,2]
[340641593,1729584641662,-619.69,0.00016712,2]
[340641594,1729584641671,-500.0,0.00016712,2]
[340641595,1729584641680,-500.0,0.00016712,2]
[340641596,1729584641689,-627.26,0.00016712,2]
[340641597,1729584641699,-500.0,0.00016712,2]
[340641598,1729584641708,-658.98,0.00016712,2]
[340641599,1729584641717,-539.06,0.00016712,2]
[340641600,1729584641727,-585.49,0.00016712,2]
[340641601,1729584641736,-151.0,0.00016712,2]
[340641602,1729584641746,-262.90141,0.00016712,2]
[340641603,1729584641755,-1062.46,0.00016712,2]
[340641604,1729584641765,-262.90141,0.00016712,2]
[340641605,1729584641774,-151.0,0.00016712,2]
[340641606,1729584641784,-151.0,0.00016712,2]
[340641607,1729584641793,-836.53,0.00016712,2]
[340641608,1729584641803,-2495.59372708,0.00016712,2]
[340641618,1729584642859,-500.0,0.00016438,2]
[340641619,1729584642868,-500.0,0.00016712,2]
[340641620,1729584642880,-500.0,0.00016712,2]
[340641622,1729584642890,-692.749995,0.00016712,2]
[340641660,1729584645848,-1608.74218957,0.00016438,2]
[340641680,1729584764158,3000.0,0.00022,60]
[340641692,1729584884791,3000.0,0.00022,60]
[340641699,1729584929242,3000.0,0.00022,60]
[340641749,1729585597117,-169.29422994,0.00015248,2]
[340641754,1729585641112,-300.0,0.00015248,2]
[340641755,1729585641134,-300.0,0.00015248,2]
[340641756,1729585641156,-1141.84086631,0.00015249,2]
[340641757,1729585643086,-1640.69031893,0.00015249,2]
[340641758,1729585644104,-1338.19304531,0.00015249,2]
[340641759,1729585644141,-400.53734858,0.00015249,2]
[340641765,1729585683151,273.37336231,9.9e-05,2]
[340641776,1729585699586,273.37336231,9.9e-05,2]
[340641781,1729585716574,273.37336231,9.9e-05,2]
[340641783,1729585723458,3703.79677056,0.0001,2]
[340641790,1729585732444,273.37336231,9.9e-05,2]
[340641791,1729585748758,273.37336231,9.9e-05,2]
[340641793,1729585764878,273.37336231,9.9e-05,2]
[340641796,1729585811451,273.37336231,9.9e-05,2]
[340641811,1729585832081,-371.20515885,0.00015099,2]
[340641812,1729585832094,-1336.35163527,0.00015099,2]
[340641813,1729585832106,-931.38397546,0.00015099,2]
[340641854,1729585846121,-841.80901332,0.00015099,2]
[340641857,1729585859071,538.47,0.00010959,2]
[340641858,1729585869600,106.43623769,0.00010959,2]
[340641859,1729585869621,523.39376231,0.00010959,2]
[340641860,1729585872602,358.60623769,0.00013698,2]
[340641862,1729585880341,490.0,0.00010959,2]
[340641863,1729585880365,34.86,0.00010959,2]
[340641864,1729585891092,437.38,0.00010959,2]
[340641866,1729585901676,129.12480663,0.00010959,2]
[340641867,1729585901700,235.36519337,0.00010959,2]
[340641868,1729585912388,303.74,0.00010959,2]
[340641869,1729585922875,253.11,0.00010959,2]
[340641870,1729585933425,210.93,0.00010959,2]
[340641872,1729585944221,175.77,0.00010959,2]
[340641874,1729585953963,273.37336231,9.9e-05,2]
[340641875,1729585954897,878.9,0.00010959,2]
[340641876,1729585962776,273.37336231,9.9e-05,2]
[340641877,1729585971131,273.37336231,9.9e-05,2]
[340641886,1729586094551,15278.58115217,0.0001,10]
[340641911,1729586561758,1690.0,0.00022,60]
[340641938,1729586827144,-912.08160203,0.00013594,2]
[340641939,1729586829115,-2001.19834687,0.00013594,2]
[340641940,1729586829136,-217.76807119,0.00013598,2]
[340641941,1729586829158,-3000.0,0.00013642,2]
[340641942,1729586829178,-500.0,0.00013698,2]
[340641943,1729586829203,-197.682307,0.00013942,2]
[340641944,1729586829223,-250.0,0.00013959,2]
[340641945,1729586829244,-300.0,0.00014278,2]
[340641946,1729586829265,-9123.4510727,0.00014279,2]
[340641947,1729586829287,-197.682307,0.00014669,2]
[340641948,1729586829308,-765.44179677,0.0001541,2]
[340641949,1729586829329,-472.18623396,0.0001541,2]
[340641950,1729586829349,-368.59689077,0.0001551,2]
[340641951,1729586829372,-714.00585468,0.0001551,2]
[340641955,1729586959119,-300.0,0.00013583,2]
[340641956,1729586959143,-300.0,0.00013583,2]
[340641957,1729586959425,-11266.8712312,0.00013584,2]
[340641958,1729586959451,-217.76807118,0.00013598,2]
[340641959,1729586959474,-500.0,0.00013698,2]
[340641960,1729586959497,-783.6669232,0.00014547,2]
[340641961,1729587007080,500.0,0.00013698,2]
[340642002,1729587038390,-688.89761712,0.0001541,2]
[340642003,1729587038399,-413.16295475,0.00015478,2]
[340642005,1729587038410,-300.0,0.00015509,2]
[340642006,1729587038419,-300.0,0.00015509,2]
[340642007,1729587038428,-245.73126052,0.0001551,2]
[340642008,1729587038437,-15254.00375324,0.0001551,2]
[340642009,1729587038450,-18346.45688659,0.0001551,2]
[340642010,1729587038459,-153.0,0.00015578,2]
[340642011,1729587038468,-412.567054,0.00015589,2]
[340642012,1729587038477,-415.0184296,0.00015726,2]
[340642013,1729587038487,-210.744449,0.00015726,2]
[340642014,1729587038496,-210.744449,0.00015726,2]
[340642015,1729587038506,-415.0184296,0.00015726,2]
[340642016,1729587038516,-421.3019131,0.00015726,2]
[340642017,1729587038525,-277.9799738,0.00015726,2]
[340642018,1729587038535,-159.780457,0.0001589,2]
[340642019,1729587038544,-582.01,0.00015986,7]
[340642020,1729587038554,-559.87,0.00015986,7]
[340642021,1729587038563,-150.0,0.00016208,2]
[340642022,1729587038572,-527.0,0.00016208,2]
[340642023,1729587038582,-1196.014,0.00016208,2]
[340642024,1729587038590,-1806.0,0.00016208,2]
[340642025,1729587038600,-150.0,0.000164,2]
[340642026,1729587038611,-10690.20245586,0.00016408,2]
[340642027,1729587038620,-244.267793,0.00016408,2]
[340642028,1729587038629,-244.267793,0.00016408,2]
[340642029,1729587038638,-188.024297,0.00016408,2]
[340642030,1729587038647,-188.024297,0.00016408,2]
[340642031,1729587038656,-151.0,0.00016408,2]
[340642032,1729587038665,-13008.65994299,0.00016408,2]
[340642033,1729587038674,-53507.519622,0.00016408,2]
[340642034,1729587038683,-152179.79195629,0.00016408,2]
[340642054,1729587043362,-77906.39978233,0.00016408,2]
[340642061,1729587046284,-82318.81187579,0.00016408,2]
[340642064,1729587158547,273.37336231,9.9e-05,2]
[340642065,1729587174690,273.37336231,9.9e-05,2]
[340642109,1729588038115,-500.0,0.00013698,2]
[340642110,1729588038137,-911.403881,0.00015188,2]
[340642111,1729588038159,-259.483382,0.00015418,2]
[340642112,1729588038187,-19.67786303,0.0001589,2]
[340642113,1729588047130,-145.74131497,0.0001589,2]
[340642114,1729588047152,-4868.93080622,0.00016308,2]
[340642115,1729588047174,-389.17858321,0.00016318,2]
[340642116,1729588047198,-249.5777121,0.00016338,2]
[340642117,1729588050085,-50.4222879,0.00016338,2]
[340642118,1729588050106,-300.0,0.00016338,2]
[340642119,1729588050128,-108.5777121,0.00016339,2]
[340642120,1729588052115,-41.4222879,0.00016339,2]
[340642121,1729588052137,-526.048,0.00016339,2]
[340642122,1729588052158,-247.52638443,0.00016339,2]
[340642163,1729588085950,273.37336231,9.9e-05,2]
[340642167,1729588102923,273.37336231,9.9e-05,2]
[340642194,1729588151113,-500.0,0.00013698,2]
[340642274,1729588238698,-165.377298,0.0001589,2]
[340642275,1729588238708,-273.13995847,0.00016308,2]
[340642276,1729588238972,-67.39130183,0.00016308,2]
[340642277,1729588238981,-334.14077342,0.00016339,2]
[340642278,1729588239430,-90.55518581,0.00016339,2]
[340642282,1729588240627,-481.070003,0.00016339,2]
[340642296,1729588246511,-650.70765334,0.00016339,2]
[340642297,1729588246520,-710.26658371,0.00016339,2]
[340642307,1729588290061,184.29,0.00010959,2]
[340642314,1729589137235,250.0,0.0001,2]
[340642316,1729589214151,-169.29422994,0.00012,2]
[340642319,1729589225103,-80.70577006,0.00012,2]
[340642320,1729589225128,-300.0,0.00013807,2]
[340642321,1729589225151,-19.83157852,0.00013807,2]
[340642322,1729589246096,-280.16842148,0.00013807,2]
[340642323,1729589246118,-540.0606647,0.00013808,2]
[340642324,1729589246152,-1150.65,0.00013808,2]
[340642325,1729589250117,-2444.30278846,0.00013808,2]
[340642339,1729589347143,-342.0817941,0.00013,2]
[340642340,1729589347164,-300.0,0.00013807,2]
[340642341,1729589347186,-610.2170371,0.00013808,2]
[340642344,1729589359101,-308.49399769,0.00013808,2]
[340642345,1729589359125,-5000.0,0.00013808,2]
[340642346,1729589359145,-250.0,0.00014,2]
[340642347,1729589366137,-1239.8078002,0.00014787,2]
[340642356,1729589411944,168.89,0.00010959,2]
[340642357,1729589415830,-200.0,0.000254,120]
[340642358,1729589415852,-314.11421,0.000254,120]
[340642359,1729589416241,-177.83579,0.000268,120]
[340642360,1729589422841,844.5,0.00010959,2]
[340642393,1729589432695,-173.635062,0.00014974,2]
[340642395,1729589432705,-400.48,0.00015,2]
[340642397,1729589432714,-173.635062,0.00015235,2]
[340642399,1729589432723,-181.2510102,0.00015401,2]
[340642401,1729589432732,-173.635062,0.00015495,2]
[340642403,1729589432742,-173.635062,0.00015755,2]
[340642404,1729589432751,-306.0,0.000158,2]
[340642405,1729589432760,-8868.48320147,0.000158,2]
[340642422,1729589437820,-57201.71575882,0.000158,2]
[340642442,1729589438047,-4498.26920954,0.000158,2]
[340642443,1729589438059,-28236.42955347,0.000158,2]
[340642451,1729589439771,-3383.19517175,0.000158,2]
[340642452,1729589439783,-3239.1,0.000158,2]
[340642453,1729589439833,-386.56,0.000158,2]
[340642459,1729589443153,-529.14962124,0.000158,2]
[340648378,1729589787512,157.19401862,0.0001,7]
[340648379,1729590434164,-500.0,0.00013698,2]
[340648380,1729590434186,-2776.00504882,0.00014654,2]
[340648381,1729590444140,-223.99495118,0.00014654,2]
[340648382,1729590444162,-300.0,0.00014705,2]
[340648383,1729590444183,-300.0,0.00014705,2]
[340648384,1729590444207,-1576.21330236,0.00014706,2]
[340648385,1729590446101,-1280.6510206,0.00014706,2]
[340648393,1729590551136,-300.0,0.00014705,2]
[340648394,1729590551159,-300.0,0.00014705,2]
[340648395,1729590551181,-14293.19797844,0.00014706,2]
[340648396,1729590554303,153.0,0.0001337,2]
[340648456,1729590638255,-177.325968,0.00014797,2]
[340648459,1729590638265,-177.325968,0.00014871,2]
[340648460,1729590638461,-366.64684759,0.00014936,2]
[340648461,1729590638497,-25.557119,0.00014936,2]
[340648462,1729590638507,-519.87763541,0.00014936,2]
[340648463,1729590638515,-193.96765258,0.0001494,2]
[340648464,1729590638523,-250.0,0.00015,2]
[340648465,1729590638531,-153.0,0.00015,2]
[340648466,1729590638539,-153.0,0.00015,2]
[340648467,1729590638548,-153.0,0.000151,2]
[340648468,1729590638557,-306.0,0.00015441,2]
[340648469,1729590638566,-153.0,0.00015541,2]
[340648470,1729590638574,-210.744449,0.00015578,2]
[340648471,1729590638582,-15070.51589111,0.000158,2]
[340648472,1729590638592,-37001.61787073,0.000158,2]
[340648486,1729590639961,-3079.17994982,0.000158,2]
[340648487,1729590639976,-1965.11128648,0.000158,2]
[340648488,1729590640067,-2703.01236383,0.000158,2]
[340648496,1729590643364,-267.01,0.000158,2]
[340648506,1729590645877,-12530.70687644,0.000158,2]
[340648507,1729590645900,-3529.3029787,0.000158,2]
[340648508,1729590655742,389.29,0.00010959,2]